[Event "Titled Tuesday Blitz November 14 Early 2023"]
[White "LeoWin2012"]
[Black "Reprintsev, Alexander"]
[BlackFideId "14100541"]
[WhiteElo "2305"]
[BlackElo "2521"]
[Result "0-1"]
[Round "2"]
[TimeControl "180+1"]
[Date "2023.11.14"]
[WhiteClock "0:00:05"]
[BlackClock "0:00:14"]
[Board "179"]

1. e4 {[%clk 0:03:00]}  d5 {[%clk 0:02:44]} 2. exd5 {[%clk 0:03:00]}  Qxd5 {[%clk 0:02:43]} 3. d4 {[%clk 0:02:57]}  Nc6 {[%clk 0:02:42]} 4. Nf3 {[%clk 0:02:55]}  Bg4 {[%clk 0:02:42]} 5. Be2 {[%clk 0:02:49]}  O-O-O {[%clk 0:02:41]} 6. Be3 {[%clk 0:02:46]}  e5 {[%clk 0:02:39]} 7. Nc3 {[%clk 0:02:44]}  Bb4 {[%clk 0:02:38]} 8. Nxe5 {[%clk 0:02:26]}  Bxe2 {[%clk 0:02:32]} 9. Qxe2 {[%clk 0:02:25]}  Nxe5 {[%clk 0:02:27]} 10. dxe5 {[%clk 0:02:24]}  Bxc3+ {[%clk 0:02:26]} 11. bxc3 {[%clk 0:02:24]}  Qxg2 {[%clk 0:02:26]} 12. Qf1 {[%clk 0:02:14]}  Qe4 {[%clk 0:02:21]} 13. Qh3+ {[%clk 0:02:12]}  Kb8 {[%clk 0:02:20]} 14. O-O {[%clk 0:02:07]}  Ne7 {[%clk 0:02:16]} 15. Rfe1 {[%clk 0:02:04]}  Qxc2 {[%clk 0:01:59]} 16. Rab1 {[%clk 0:01:52]}  Nc6 {[%clk 0:01:51]} 17. Qf3 {[%clk 0:01:42]}  Qg6+ {[%clk 0:01:26]} 18. Kh1 {[%clk 0:01:40]}  b6 {[%clk 0:01:26]} 19. e6 {[%clk 0:01:30]}  Ne5 {[%clk 0:01:03]} 20. Qe2 {[%clk 0:00:44]}  Qe4+ {[%clk 0:01:01]} 21. Kg1 {[%clk 0:00:41]}  Nf3+ {[%clk 0:01:01]} 22. Kf1 {[%clk 0:00:39]}  Nxh2+ {[%clk 0:01:00]} 23. Kg1 {[%clk 0:00:39]}  Nf3+ {[%clk 0:01:01]} 24. Kf1 {[%clk 0:00:39]}  Nxe1 {[%clk 0:01:01]} 25. Kxe1 {[%clk 0:00:40]}  Qxe6 {[%clk 0:00:59]} 26. Qa6 {[%clk 0:00:37]}  Rd6 {[%clk 0:00:56]} 27. Rb3 {[%clk 0:00:34]}  Qc8 {[%clk 0:00:52]} 28. Qa4 {[%clk 0:00:30]}  Rhd8 {[%clk 0:00:50]} 29. Ra3 {[%clk 0:00:28]}  Rd1+ {[%clk 0:00:49]} 30. Ke2 {[%clk 0:00:28]}  a5 {[%clk 0:00:44]} 31. Qc4 {[%clk 0:00:18]}  h5 {[%clk 0:00:40]} 32. Rb3 {[%clk 0:00:07]}  Qg4+ {[%clk 0:00:39]} 33. Qxg4 {[%clk 0:00:06]}  hxg4 {[%clk 0:00:39]} 34. Bf4 {[%clk 0:00:06]}  Kb7 {[%clk 0:00:37]} 35. Rb2 {[%clk 0:00:05]}  R1d7 {[%clk 0:00:35]} 36. Be3 {[%clk 0:00:05]}  f5 {[%clk 0:00:34]} 37. Rb1 {[%clk 0:00:05]}  Re8 {[%clk 0:00:33]} 38. Kf1 {[%clk 0:00:05]}  Rd3 {[%clk 0:00:29]} 39. Bf4 {[%clk 0:00:04]}  Re4 {[%clk 0:00:26]} 40. Bg3 {[%clk 0:00:03]}  f4 {[%clk 0:00:24]} 41. Bh4 {[%clk 0:00:04]}  Rxc3 {[%clk 0:00:23]} 42. Kg2 {[%clk 0:00:04]}  Re2 {[%clk 0:00:20]} 43. Kf1 {[%clk 0:00:03]}  Rcc2 {[%clk 0:00:20]} 44. Kg2 {[%clk 0:00:03]}  g3 {[%clk 0:00:19]} 45. Kh3 {[%clk 0:00:04]}  Rxf2 {[%clk 0:00:19]} 46. a4 {[%clk 0:00:03]}  Rc6 {[%clk 0:00:17]} 47. Kg4 {[%clk 0:00:03]}  Rg6+ {[%clk 0:00:16]} 48. Kf5 {[%clk 0:00:04]}  Rh6 {[%clk 0:00:16]} 49. Bg5 {[%clk 0:00:04]}  Rh5 {[%clk 0:00:16]} 50. Kg4 {[%clk 0:00:03]}  Rxg5+ {[%clk 0:00:16]} 51. Kxg5 {[%clk 0:00:04]}  g2 {[%clk 0:00:16]} 52. Rg1 {[%clk 0:00:04]}  f3 {[%clk 0:00:16]} 53. Kg4 {[%clk 0:00:05]}  Rf1 {[%clk 0:00:17]} 54. Rxf1 {[%clk 0:00:03]}  gxf1=Q {[%clk 0:00:16]} 55. Kg3 {[%clk 0:00:04]}  Qg2+ {[%clk 0:00:16]} 56. Kh4 {[%clk 0:00:04]}  f2 {[%clk 0:00:14]} 57. Kh5 {[%clk 0:00:04]}  f1=Q {[%clk 0:00:13]} 58. Kh4 {[%clk 0:00:05]}  Qfh1# {[%clk 0:00:14]} 0-1


[Site "https://www.chess.com"]

[Event "Titled Tuesday Blitz November 14 Early 2023"]
[White "Larina, Maria"]
[Black "Rietze, Clemens, Dr."]
[WhiteFideId "24113182"]
[BlackFideId "24620351"]
[WhiteElo "2301"]
[BlackElo "2517"]
[Result "0-1"]
[Round "2"]
[TimeControl "180+1"]
[Date "2023.11.14"]
[WhiteClock "0:01:24"]
[BlackClock "0:02:05"]
[Board "183"]

1. e4 {[%clk 0:03:00]}  c5 {[%clk 0:02:59]} 2. Nc3 {[%clk 0:03:00]}  Nc6 {[%clk 0:03:00]} 3. g3 {[%clk 0:03:00]}  g6 {[%clk 0:03:00]} 4. Bg2 {[%clk 0:03:01]}  Bg7 {[%clk 0:03:00]} 5. d3 {[%clk 0:03:01]}  Rb8 {[%clk 0:03:01]} 6. Be3 {[%clk 0:03:00]}  d6 {[%clk 0:03:01]} 7. Qd2 {[%clk 0:02:57]}  b5 {[%clk 0:02:59]} 8. Nf3 {[%clk 0:02:52]}  Nd4 {[%clk 0:02:57]} 9. b4 {[%clk 0:02:32]}  Nxf3+ {[%clk 0:02:52]} 10. Bxf3 {[%clk 0:02:33]}  cxb4 {[%clk 0:02:52]} 11. d4 {[%clk 0:02:03]}  bxc3 {[%clk 0:02:50]} 12. Qxc3 {[%clk 0:02:04]}  Bd7 {[%clk 0:02:47]} 13. O-O {[%clk 0:02:02]}  Qc8 {[%clk 0:02:42]} 14. Qd2 {[%clk 0:02:02]}  Bg4 {[%clk 0:02:27]} 15. Bg2 {[%clk 0:02:01]}  h5 {[%clk 0:02:26]} 16. f3 {[%clk 0:01:59]}  Bh3 {[%clk 0:02:25]} 17. Rab1 {[%clk 0:01:55]}  Bxg2 {[%clk 0:02:24]} 18. Kxg2 {[%clk 0:01:56]}  Nf6 {[%clk 0:02:21]} 19. e5 {[%clk 0:01:53]}  Nd5 {[%clk 0:02:20]} 20. Bg5 {[%clk 0:01:50]}  O-O {[%clk 0:02:19]} 21. Rb3 {[%clk 0:01:43]}  Re8 {[%clk 0:02:16]} 22. f4 {[%clk 0:01:43]}  Qc6 {[%clk 0:02:12]} 23. Kg1 {[%clk 0:01:42]}  Rbc8 {[%clk 0:02:12]} 24. Rf2 {[%clk 0:01:34]}  Nc3 {[%clk 0:02:08]} 25. Qe3 {[%clk 0:01:25]}  Nd1 {[%clk 0:02:06]} 26. Qe2 {[%clk 0:01:24]}  Nxf2 {[%clk 0:02:05]} 0-1


[Site "https://www.chess.com"]

[Event "Titled Tuesday Blitz November 14 Early 2023"]
[White "Pinto, Daniel"]
[Black "Osmonbekov, Talaibek"]
[WhiteFideId "3303144"]
[BlackFideId "2017253"]
[WhiteElo "2517"]
[BlackElo "2299"]
[Result "0-1"]
[Round "2"]
[TimeControl "180+1"]
[Date "2023.11.14"]
[WhiteClock "0:01:01"]
[BlackClock "0:01:18"]
[Board "184"]

1. Nf3 {[%clk 0:03:00]}  c5 {[%clk 0:03:00]} 2. g3 {[%clk 0:02:58]}  Nc6 {[%clk 0:03:00]} 3. Bg2 {[%clk 0:02:59]}  f5 {[%clk 0:03:00]} 4. O-O {[%clk 0:03:00]}  Nf6 {[%clk 0:03:01]} 5. c4 {[%clk 0:02:59]}  e5 {[%clk 0:03:01]} 6. d3 {[%clk 0:02:59]}  d6 {[%clk 0:03:01]} 7. Nc3 {[%clk 0:02:59]}  Be7 {[%clk 0:03:01]} 8. Ne1 {[%clk 0:02:56]}  O-O {[%clk 0:03:01]} 9. Rb1 {[%clk 0:02:56]}  Kh8 {[%clk 0:02:55]} 10. a3 {[%clk 0:02:55]}  a5 {[%clk 0:02:54]} 11. Nc2 {[%clk 0:02:52]}  Qe8 {[%clk 0:02:46]} 12. Nd5 {[%clk 0:02:34]}  Nxd5 {[%clk 0:02:43]} 13. Bxd5 {[%clk 0:02:30]}  f4 {[%clk 0:02:39]} 14. e3 {[%clk 0:02:26]}  Bh3 {[%clk 0:02:24]} 15. Re1 {[%clk 0:02:19]}  Qg6 {[%clk 0:02:07]} 16. exf4 {[%clk 0:02:16]}  exf4 {[%clk 0:01:54]} 17. Bxc6 {[%clk 0:02:11]}  bxc6 {[%clk 0:01:50]} 18. Rxe7 {[%clk 0:02:10]}  Qf6 {[%clk 0:01:49]} 19. Re2 {[%clk 0:01:15]}  fxg3 {[%clk 0:01:49]} 20. hxg3 {[%clk 0:01:14]}  Rae8 {[%clk 0:01:18]} 21. Rxe8 {[%clk 0:01:01]}  Qxf2+ {[%clk 0:01:17]} 22. Kh1 {[%clk 0:01:01]}  Qg2# {[%clk 0:01:18]} 0-1


[Site "https://www.chess.com"]

[Event "Titled Tuesday Blitz November 14 Early 2023"]
[White "Buscar, Michael"]
[Black "Olsson, Linus"]
[WhiteFideId "2603616"]
[BlackFideId "1706098"]
[WhiteElo "2286"]
[BlackElo "2516"]
[Result "0-1"]
[Round "2"]
[TimeControl "180+1"]
[Date "2023.11.14"]
[WhiteClock "0:00:18"]
[BlackClock "0:01:25"]
[Board "185"]

1. e4 {[%clk 0:03:00]}  e5 {[%clk 0:02:55]} 2. Nf3 {[%clk 0:03:00]}  Nc6 {[%clk 0:02:55]} 3. Bb5 {[%clk 0:02:59]}  a6 {[%clk 0:02:55]} 4. Ba4 {[%clk 0:02:59]}  Nf6 {[%clk 0:02:55]} 5. O-O {[%clk 0:02:59]}  Bc5 {[%clk 0:02:56]} 6. Re1 {[%clk 0:02:57]}  b5 {[%clk 0:02:56]} 7. Bb3 {[%clk 0:02:57]}  d6 {[%clk 0:02:56]} 8. c3 {[%clk 0:02:57]}  h6 {[%clk 0:02:52]} 9. a4 {[%clk 0:02:39]}  Rb8 {[%clk 0:02:48]} 10. d3 {[%clk 0:02:35]}  O-O {[%clk 0:02:47]} 11. Nbd2 {[%clk 0:02:31]}  Ng4 {[%clk 0:02:34]} 12. Re2 {[%clk 0:02:31]}  Kh8 {[%clk 0:02:30]} 13. h3 {[%clk 0:02:31]}  Nxf2 {[%clk 0:02:29]} 14. Rxf2 {[%clk 0:02:31]}  Bxf2+ {[%clk 0:02:30]} 15. Kxf2 {[%clk 0:02:32]}  f5 {[%clk 0:02:30]} 16. Kg1 {[%clk 0:02:24]}  Ne7 {[%clk 0:02:27]} 17. axb5 {[%clk 0:02:18]}  axb5 {[%clk 0:02:23]} 18. Qe1 {[%clk 0:02:17]}  Ng6 {[%clk 0:02:22]} 19. Qg3 {[%clk 0:02:14]}  Nf4 {[%clk 0:02:14]} 20. Kh2 {[%clk 0:01:51]}  b4 {[%clk 0:02:09]} 21. Bc2 {[%clk 0:01:44]}  Qf6 {[%clk 0:01:57]} 22. exf5 {[%clk 0:01:26]}  Bxf5 {[%clk 0:01:58]} 23. Ne4 {[%clk 0:01:24]}  Bxe4 {[%clk 0:01:57]} 24. dxe4 {[%clk 0:01:24]}  Ne2 {[%clk 0:01:40]} 25. Qh4 {[%clk 0:01:00]}  Qxh4 {[%clk 0:01:32]} 26. Nxh4 {[%clk 0:01:00]}  Rf1 {[%clk 0:01:32]} 27. Ra7 {[%clk 0:00:20]}  Rxc1 {[%clk 0:01:30]} 28. Bb3 {[%clk 0:00:20]}  bxc3 {[%clk 0:01:27]} 29. bxc3 {[%clk 0:00:18]}  Rxb3 {[%clk 0:01:25]} 0-1


[Site "https://www.chess.com"]

[Event "Titled Tuesday Blitz November 14 Early 2023"]
[White "Tifferet, Shaked"]
[Black "remyrushbrooke"]
[WhiteFideId "2811529"]
[WhiteElo "2514"]
[BlackElo "2280"]
[Result "1-0"]
[Round "2"]
[TimeControl "180+1"]
[Date "2023.11.14"]
[WhiteClock "0:01:01"]
[BlackClock "0:00:16"]
[Board "187"]

1. e4 {[%clk 0:03:00]}  e5 {[%clk 0:03:00]} 2. Nf3 {[%clk 0:03:00]}  Nf6 {[%clk 0:03:00]} 3. Nc3 {[%clk 0:03:00]}  Nc6 {[%clk 0:03:00]} 4. Be2 {[%clk 0:02:59]}  d5 {[%clk 0:03:00]} 5. exd5 {[%clk 0:03:00]}  Nxd5 {[%clk 0:03:00]} 6. O-O {[%clk 0:03:01]}  Nxc3 {[%clk 0:03:00]} 7. bxc3 {[%clk 0:03:02]}  Bd6 {[%clk 0:02:57]} 8. d4 {[%clk 0:03:01]}  e4 {[%clk 0:02:57]} 9. Nd2 {[%clk 0:02:59]}  f5 {[%clk 0:02:48]} 10. Nc4 {[%clk 0:02:54]}  O-O {[%clk 0:02:45]} 11. Nxd6 {[%clk 0:02:49]}  Qxd6 {[%clk 0:02:46]} 12. f4 {[%clk 0:02:47]}  Be6 {[%clk 0:02:41]} 13. a4 {[%clk 0:02:41]}  Na5 {[%clk 0:02:38]} 14. Ba3 {[%clk 0:02:41]}  Qc6 {[%clk 0:02:34]} 15. Bxf8 {[%clk 0:02:32]}  Rxf8 {[%clk 0:02:34]} 16. Qe1 {[%clk 0:02:32]}  Nc4 {[%clk 0:02:32]} 17. Rf2 {[%clk 0:02:27]}  Bd5 {[%clk 0:02:18]} 18. Bxc4 {[%clk 0:02:22]}  Qxc4 {[%clk 0:02:14]} 19. Qe3 {[%clk 0:02:21]}  b6 {[%clk 0:02:06]} 20. h3 {[%clk 0:02:19]}  Kh8 {[%clk 0:01:53]} 21. Kh2 {[%clk 0:02:18]}  g6 {[%clk 0:01:53]} 22. g4 {[%clk 0:02:14]}  a5 {[%clk 0:01:44]} 23. Rg2 {[%clk 0:02:07]}  Qc6 {[%clk 0:01:34]} 24. gxf5 {[%clk 0:01:54]}  Rxf5 {[%clk 0:01:35]} 25. Rg5 {[%clk 0:01:50]}  Qf6 {[%clk 0:01:11]} 26. Rxf5 {[%clk 0:01:45]}  Qxf5 {[%clk 0:01:12]} 27. Rg1 {[%clk 0:01:44]}  h6 {[%clk 0:01:05]} 28. Rg4 {[%clk 0:01:23]}  Kh7 {[%clk 0:01:05]} 29. Rg3 {[%clk 0:01:12]}  Qd7 {[%clk 0:01:02]} 30. Qe2 {[%clk 0:01:10]}  Qxa4 {[%clk 0:00:54]} 31. f5 {[%clk 0:01:08]}  gxf5 {[%clk 0:00:24]} 32. Qh5 {[%clk 0:01:06]}  Qc6 {[%clk 0:00:15]} 33. Qxf5+ {[%clk 0:01:01]}  Kh8 {[%clk 0:00:16]} 34. Qe5+ {[%clk 0:01:01]}  Kh7 {[%clk 0:00:16]} 35. Qg7# {[%clk 0:01:01]} 1-0


[Site "https://www.chess.com"]

[Event "Titled Tuesday Blitz November 14 Early 2023"]
[White "Rasmussen, Casper"]
[Black "Cristi_Coca"]
[WhiteFideId "1402005"]
[WhiteElo "2275"]
[BlackElo "2512"]
[Result "0-1"]
[Round "2"]
[TimeControl "180+1"]
[Date "2023.11.14"]
[WhiteClock "0:00:25"]
[BlackClock "0:01:40"]
[Board "189"]

1. c4 {[%clk 0:03:00]}  Nf6 {[%clk 0:02:59]} 2. g3 {[%clk 0:03:01]}  g6 {[%clk 0:03:00]} 3. Bg2 {[%clk 0:03:01]}  Bg7 {[%clk 0:03:01]} 4. Nc3 {[%clk 0:03:01]}  O-O {[%clk 0:03:01]} 5. d3 {[%clk 0:03:02]}  d6 {[%clk 0:03:02]} 6. Bg5 {[%clk 0:03:02]}  h6 {[%clk 0:03:02]} 7. Bxf6 {[%clk 0:03:01]}  Bxf6 {[%clk 0:03:03]} 8. Nf3 {[%clk 0:03:01]}  e5 {[%clk 0:03:00]} 9. O-O {[%clk 0:03:02]}  Bg7 {[%clk 0:02:57]} 10. Rb1 {[%clk 0:03:00]}  a5 {[%clk 0:02:56]} 11. a3 {[%clk 0:02:59]}  Nc6 {[%clk 0:02:55]} 12. b4 {[%clk 0:02:58]}  axb4 {[%clk 0:02:55]} 13. axb4 {[%clk 0:02:59]}  f5 {[%clk 0:02:54]} 14. b5 {[%clk 0:02:59]}  Ne7 {[%clk 0:02:54]} 15. e3 {[%clk 0:02:53]}  g5 {[%clk 0:02:54]} 16. d4 {[%clk 0:02:51]}  Be6 {[%clk 0:02:52]} 17. dxe5 {[%clk 0:02:29]}  dxe5 {[%clk 0:02:51]} 18. Qe2 {[%clk 0:02:28]}  e4 {[%clk 0:02:48]} 19. Nd4 {[%clk 0:02:22]}  Bxd4 {[%clk 0:02:48]} 20. exd4 {[%clk 0:02:23]}  Qxd4 {[%clk 0:02:48]} 21. Nd5 {[%clk 0:02:17]}  Bxd5 {[%clk 0:02:45]} 22. cxd5 {[%clk 0:02:14]}  Nxd5 {[%clk 0:02:45]} 23. Qh5 {[%clk 0:02:06]}  Qf6 {[%clk 0:02:30]} 24. Rfc1 {[%clk 0:01:48]}  g4 {[%clk 0:02:28]} 25. Bf1 {[%clk 0:01:41]}  Kg7 {[%clk 0:02:25]} 26. Rc5 {[%clk 0:01:33]}  Rad8 {[%clk 0:02:06]} 27. Bc4 {[%clk 0:01:26]}  Qe5 {[%clk 0:02:00]} 28. Qh4 {[%clk 0:00:52]}  b6 {[%clk 0:01:48]} 29. Rc6 {[%clk 0:00:49]}  Nf6 {[%clk 0:01:46]} 30. Re6 {[%clk 0:00:42]}  Qc5 {[%clk 0:01:41]} 31. Ba2 {[%clk 0:00:25]}  Rd2 {[%clk 0:01:40]} 0-1


[Site "https://www.chess.com"]

[Event "Titled Tuesday Blitz November 14 Early 2023"]
[White "alfianasybullina"]
[Black "Hajiyev, Kanan"]
[BlackFideId "13404148"]
[WhiteElo "2261"]
[BlackElo "2506"]
[Result "1-0"]
[Round "2"]
[TimeControl "180+1"]
[Date "2023.11.14"]
[WhiteClock "0:01:33"]
[BlackClock "0:00:02"]
[Board "192"]

1. d4 {[%clk 0:03:00]}  d5 {[%clk 0:02:59]} 2. Nf3 {[%clk 0:03:01]}  c5 {[%clk 0:02:59]} 3. c3 {[%clk 0:02:59]}  Nc6 {[%clk 0:02:57]} 4. dxc5 {[%clk 0:03:00]}  e5 {[%clk 0:02:58]} 5. b4 {[%clk 0:02:59]}  e4 {[%clk 0:02:54]} 6. Nd4 {[%clk 0:02:58]}  Nf6 {[%clk 0:02:54]} 7. Nxc6 {[%clk 0:02:56]}  bxc6 {[%clk 0:02:55]} 8. Bg5 {[%clk 0:02:53]}  Be7 {[%clk 0:02:55]} 9. e3 {[%clk 0:02:52]}  h6 {[%clk 0:02:55]} 10. Bh4 {[%clk 0:02:49]}  a5 {[%clk 0:02:47]} 11. Be2 {[%clk 0:02:44]}  axb4 {[%clk 0:02:33]} 12. cxb4 {[%clk 0:02:45]}  O-O {[%clk 0:02:07]} 13. Nc3 {[%clk 0:02:34]}  Ba6 {[%clk 0:02:05]} 14. Bxa6 {[%clk 0:02:29]}  Rxa6 {[%clk 0:02:06]} 15. a4 {[%clk 0:02:29]}  Qb8 {[%clk 0:02:06]} 16. Rb1 {[%clk 0:02:27]}  Ra7 {[%clk 0:01:48]} 17. O-O {[%clk 0:02:25]}  Rd8 {[%clk 0:01:41]} 18. Ne2 {[%clk 0:02:21]}  Rb7 {[%clk 0:01:40]} 19. Bg3 {[%clk 0:02:15]}  Qc8 {[%clk 0:01:31]} 20. Nd4 {[%clk 0:02:15]}  Qd7 {[%clk 0:01:23]} 21. b5 {[%clk 0:02:13]}  Bxc5 {[%clk 0:00:48]} 22. bxc6 {[%clk 0:02:01]}  Rxb1 {[%clk 0:00:49]} 23. Qxb1 {[%clk 0:02:01]}  Qe7 {[%clk 0:00:37]} 24. c7 {[%clk 0:02:00]}  Rc8 {[%clk 0:00:37]} 25. Qb7 {[%clk 0:01:55]}  Qd7 {[%clk 0:00:33]} 26. Nb5 {[%clk 0:01:47]}  Ne8 {[%clk 0:00:29]} 27. h3 {[%clk 0:01:46]}  Kh7 {[%clk 0:00:21]} 28. Rd1 {[%clk 0:01:46]}  Nd6 {[%clk 0:00:21]} 29. Rxd5 {[%clk 0:01:41]}  Qxb5 {[%clk 0:00:06]} 30. Qxb5 {[%clk 0:01:40]}  Nxb5 {[%clk 0:00:06]} 31. axb5 {[%clk 0:01:40]}  Bb6 {[%clk 0:00:06]} 32. Rd6 {[%clk 0:01:33]}  Bxc7 {[%clk 0:00:04]} 33. Rc6 {[%clk 0:01:33]}  Bxg3 {[%clk 0:00:02]} 34. Rxc8 {[%clk 0:01:33]} 1-0


[Site "https://www.chess.com"]

[Event "Titled Tuesday Blitz November 14 Early 2023"]
[White "Rodriguez Santiago, Jaime"]
[Black "Jovic, Stanoje"]
[WhiteFideId "3100898"]
[BlackFideId "905020"]
[WhiteElo "2260"]
[BlackElo "2504"]
[Result "0-1"]
[Round "2"]
[TimeControl "180+1"]
[Date "2023.11.14"]
[WhiteClock "0:00:12"]
[BlackClock "0:00:23"]
[Board "193"]

1. c4 {[%clk 0:03:00]}  e5 {[%clk 0:02:59]} 2. Nc3 {[%clk 0:02:59]}  Nf6 {[%clk 0:02:57]} 3. g3 {[%clk 0:02:59]}  c6 {[%clk 0:02:57]} 4. Nf3 {[%clk 0:02:58]}  e4 {[%clk 0:02:53]} 5. Nd4 {[%clk 0:02:58]}  d5 {[%clk 0:02:53]} 6. cxd5 {[%clk 0:02:50]}  cxd5 {[%clk 0:02:51]} 7. Bg2 {[%clk 0:02:49]}  Qb6 {[%clk 0:02:49]} 8. e3 {[%clk 0:02:42]}  Nc6 {[%clk 0:02:39]} 9. Nb3 {[%clk 0:02:33]}  Bg4 {[%clk 0:02:27]} 10. f3 {[%clk 0:02:23]}  exf3 {[%clk 0:02:11]} 11. Bxf3 {[%clk 0:02:22]}  Be6 {[%clk 0:02:11]} 12. d4 {[%clk 0:02:11]}  a5 {[%clk 0:02:07]} 13. O-O {[%clk 0:02:01]}  a4 {[%clk 0:02:07]} 14. Nd2 {[%clk 0:01:57]}  a3 {[%clk 0:02:06]} 15. b3 {[%clk 0:01:37]}  Nxd4 {[%clk 0:01:57]} 16. Na4 {[%clk 0:01:10]}  Rxa4 {[%clk 0:01:55]} 17. bxa4 {[%clk 0:01:08]}  Nf5 {[%clk 0:01:54]} 18. Qe2 {[%clk 0:00:54]}  Nxe3 {[%clk 0:01:43]} 19. Rf2 {[%clk 0:00:53]}  Bc5 {[%clk 0:01:30]} 20. Rb1 {[%clk 0:00:51]}  Qa7 {[%clk 0:01:22]} 21. Nb3 {[%clk 0:00:39]}  Nc4 {[%clk 0:01:17]} 22. Nxc5 {[%clk 0:00:37]}  Qxc5 {[%clk 0:01:17]} 23. Rb5 {[%clk 0:00:36]}  Qc6 {[%clk 0:01:09]} 24. Bg5 {[%clk 0:00:35]}  O-O {[%clk 0:01:02]} 25. Bxf6 {[%clk 0:00:35]}  gxf6 {[%clk 0:01:02]} 26. Kg2 {[%clk 0:00:27]}  Re8 {[%clk 0:00:59]} 27. Qd3 {[%clk 0:00:25]}  Ne5 {[%clk 0:00:56]} 28. Qxa3 {[%clk 0:00:22]}  Rd8 {[%clk 0:00:52]} 29. Rb4 {[%clk 0:00:21]}  Kh8 {[%clk 0:00:44]} 30. Rd4 {[%clk 0:00:21]}  Nc4 {[%clk 0:00:40]} 31. Qc3 {[%clk 0:00:20]}  Qb6 {[%clk 0:00:31]} 32. Rxc4 {[%clk 0:00:20]}  dxc4 {[%clk 0:00:31]} 33. Qxf6+ {[%clk 0:00:20]}  Kg8 {[%clk 0:00:31]} 34. Be4 {[%clk 0:00:19]}  Rd6 {[%clk 0:00:26]} 35. Bxh7+ {[%clk 0:00:12]}  Kxh7 {[%clk 0:00:24]} 36. Rf4 {[%clk 0:00:13]}  Bd5+ {[%clk 0:00:23]} 37. Kh3 {[%clk 0:00:13]}  Rxf6 {[%clk 0:00:24]} 38. Rxf6 {[%clk 0:00:12]}  Qxf6 {[%clk 0:00:23]} 0-1


[Site "https://www.chess.com"]

[Event "Titled Tuesday Blitz November 14 Early 2023"]
[White "Chernomordik, Pavel"]
[Black "Dodaro, Mattia"]
[WhiteFideId "2804530"]
[BlackFideId "28583400"]
[WhiteElo "2503"]
[BlackElo "2251"]
[Result "1-0"]
[Round "2"]
[TimeControl "180+1"]
[Date "2023.11.14"]
[WhiteClock "0:00:31"]
[BlackClock "0:00:00"]
[Board "195"]

1. e4 {[%clk 0:03:00]}  Nc6 {[%clk 0:03:00]} 2. Nf3 {[%clk 0:03:00]}  d6 {[%clk 0:02:59]} 3. d4 {[%clk 0:02:59]}  g6 {[%clk 0:02:59]} 4. Nc3 {[%clk 0:02:59]}  Bg7 {[%clk 0:02:58]} 5. d5 {[%clk 0:02:55]}  Ne5 {[%clk 0:02:58]} 6. Nd4 {[%clk 0:02:55]}  c5 {[%clk 0:02:53]} 7. dxc6 {[%clk 0:02:49]}  Nxc6 {[%clk 0:02:53]} 8. Be3 {[%clk 0:02:49]}  Nf6 {[%clk 0:02:51]} 9. Be2 {[%clk 0:02:48]}  O-O {[%clk 0:02:49]} 10. Qd2 {[%clk 0:02:47]}  d5 {[%clk 0:02:46]} 11. Nxc6 {[%clk 0:02:42]}  bxc6 {[%clk 0:02:46]} 12. e5 {[%clk 0:02:42]}  Ng4 {[%clk 0:02:36]} 13. Bxg4 {[%clk 0:02:34]}  Bxg4 {[%clk 0:02:36]} 14. f4 {[%clk 0:02:33]}  Qc7 {[%clk 0:02:19]} 15. h3 {[%clk 0:02:28]}  Be6 {[%clk 0:02:11]} 16. Na4 {[%clk 0:02:23]}  Rab8 {[%clk 0:01:52]} 17. Qc3 {[%clk 0:02:14]}  f6 {[%clk 0:01:47]} 18. Nc5 {[%clk 0:02:13]}  Bc8 {[%clk 0:01:43]} 19. Bd4 {[%clk 0:02:12]}  fxe5 {[%clk 0:01:32]} 20. Bxe5 {[%clk 0:02:10]}  Bxe5 {[%clk 0:01:31]} 21. fxe5 {[%clk 0:02:01]}  Rb5 {[%clk 0:01:10]} 22. O-O-O {[%clk 0:01:56]}  Rf5 {[%clk 0:00:59]} 23. Rde1 {[%clk 0:01:52]}  Qb6 {[%clk 0:00:57]} 24. Nd3 {[%clk 0:01:44]}  Be6 {[%clk 0:00:45]} 25. Rhf1 {[%clk 0:01:41]}  d4 {[%clk 0:00:41]} 26. Qa3 {[%clk 0:01:37]}  c5 {[%clk 0:00:37]} 27. b3 {[%clk 0:01:29]}  c4 {[%clk 0:00:22]} 28. Nf4 {[%clk 0:01:24]}  cxb3 {[%clk 0:00:07]} 29. axb3 {[%clk 0:01:16]}  Bxb3 {[%clk 0:00:06]} 30. cxb3 {[%clk 0:00:56]}  Rxb3 {[%clk 0:00:07]} 31. Qa2 {[%clk 0:00:52]}  g5 {[%clk 0:00:05]} 32. Nd5 {[%clk 0:00:50]}  Qc5+ {[%clk 0:00:04]} 33. Kd2 {[%clk 0:00:45]}  Qxd5 {[%clk 0:00:04]} 34. Rxf5 {[%clk 0:00:42]}  Rd3+ {[%clk 0:00:02]} 35. Kxd3 {[%clk 0:00:42]}  Qxa2 {[%clk 0:00:03]} 36. Rxg5+ {[%clk 0:00:38]}  Kf7 {[%clk 0:00:00]} 37. Re2 {[%clk 0:00:31]} 1-0


[Site "https://www.chess.com"]

[Event "Titled Tuesday Blitz November 14 Early 2023"]
[White "Sarkar, Justin"]
[Black "Kanyamarala, Trisha"]
[WhiteFideId "2010011"]
[BlackFideId "45004722"]
[WhiteElo "2248"]
[BlackElo "2503"]
[Result "0-1"]
[Round "2"]
[TimeControl "180+1"]
[Date "2023.11.14"]
[WhiteClock "0:00:00"]
[BlackClock "0:00:04"]
[Board "197"]

1. e4 {[%clk 0:02:50]}  c5 {[%clk 0:02:59]} 2. Nf3 {[%clk 0:02:47]}  d6 {[%clk 0:02:59]} 3. d4 {[%clk 0:02:41]}  cxd4 {[%clk 0:02:59]} 4. Nxd4 {[%clk 0:02:41]}  Nf6 {[%clk 0:02:59]} 5. Nc3 {[%clk 0:02:42]}  Nc6 {[%clk 0:02:59]} 6. Bg5 {[%clk 0:02:40]}  e6 {[%clk 0:02:59]} 7. Bb5 {[%clk 0:02:39]}  Qb6 {[%clk 0:02:57]} 8. Be3 {[%clk 0:02:18]}  Qc7 {[%clk 0:02:53]} 9. O-O {[%clk 0:02:03]}  a6 {[%clk 0:02:49]} 10. Be2 {[%clk 0:01:58]}  Be7 {[%clk 0:02:46]} 11. f4 {[%clk 0:01:44]}  O-O {[%clk 0:02:44]} 12. a4 {[%clk 0:01:39]}  e5 {[%clk 0:02:29]} 13. Nf5 {[%clk 0:01:32]}  Bxf5 {[%clk 0:02:22]} 14. exf5 {[%clk 0:01:31]}  Rad8 {[%clk 0:02:20]} 15. a5 {[%clk 0:01:14]}  Rd7 {[%clk 0:02:14]} 16. Bb6 {[%clk 0:01:08]}  Qc8 {[%clk 0:02:08]} 17. g4 {[%clk 0:00:58]}  d5 {[%clk 0:01:38]} 18. g5 {[%clk 0:00:54]}  Ne4 {[%clk 0:01:19]} 19. Nxd5 {[%clk 0:00:48]}  exf4 {[%clk 0:00:53]} 20. Rxf4 {[%clk 0:00:36]}  Nxg5 {[%clk 0:00:47]} 21. Kh1 {[%clk 0:00:26]}  Bd8 {[%clk 0:00:34]} 22. f6 {[%clk 0:00:10]}  Bxb6 {[%clk 0:00:22]} 23. axb6 {[%clk 0:00:10]}  Rfd8 {[%clk 0:00:19]} 24. c4 {[%clk 0:00:10]}  Ne6 {[%clk 0:00:17]} 25. Rg4 {[%clk 0:00:08]}  Ne5 {[%clk 0:00:16]} 26. Rg3 {[%clk 0:00:04]}  g6 {[%clk 0:00:13]} 27. Qd2 {[%clk 0:00:04]}  Qc5 {[%clk 0:00:07]} 28. Qh6 {[%clk 0:00:04]}  Rxd5 {[%clk 0:00:07]} 29. cxd5 {[%clk 0:00:03]}  Qxd5+ {[%clk 0:00:07]} 30. Kg1 {[%clk 0:00:03]}  Qc5+ {[%clk 0:00:07]} 31. Kg2 {[%clk 0:00:03]}  Qc6+ {[%clk 0:00:07]} 32. Kg1 {[%clk 0:00:03]}  Qxb6+ {[%clk 0:00:06]} 33. Kh1 {[%clk 0:00:03]}  Qxb2 {[%clk 0:00:05]} 34. Rf1 {[%clk 0:00:00]}  Qxe2 {[%clk 0:00:04]} 0-1


[Site "https://www.chess.com"]